[Event "*** SCC Grand Prix: Titled Tuesday Blitz"]
[Site "Chess.com"]
[Date "2020.07.21"]
[Round "4"]
[White "chesslh19"]
[Black "jamalm2"]
[Result "1-0"]
[WhiteElo "2166"]
[BlackElo "1857"]
[TimeControl "180+1"]
[EndTime "10:37:34 PDT"]
[Termination "chesslh19 won by resignation"]

1. e4 {[%clk 0:03:00.9]} 1... c5 {[%clk 0:02:58.4]} 2. Nf3 {[%clk 0:03:01.2]}
2... e6 {[%clk 0:02:58]} 3. d4 {[%clk 0:03:01.7]} 3... cxd4 {[%clk 0:02:57.8]}
4. Nxd4 {[%clk 0:03:02.6]} 4... Nc6 {[%clk 0:02:57.8]} 5. Nb5 {[%clk 0:03:02.2]}
5... a6 {[%clk 0:02:42.6]} 6. Nd6+ {[%clk 0:03:00.2]} 6... Bxd6 {[%clk 0:02:42]}
7. Qxd6 {[%clk 0:03:01.1]} 7... Qe7 {[%clk 0:02:36.4]} 8. Qxe7+ {[%clk
0:03:00.7]} 8... Ngxe7 {[%clk 0:02:35]} 9. Nc3 {[%clk 0:02:59.1]} 9... O-O
{[%clk 0:02:33.6]} 10. Be3 {[%clk 0:02:39.6]} 10... b5 {[%clk 0:02:30.9]} 11.
O-O-O {[%clk 0:02:26.7]} 11... b4 {[%clk 0:02:28.5]} 12. Na4 {[%clk 0:02:25.5]}
12... d5 {[%clk 0:02:22.7]} 13. Nb6 {[%clk 0:02:15.2]} 13... Rb8 {[%clk
0:02:21.2]} 14. exd5 {[%clk 0:02:08.4]} 14... exd5 {[%clk 0:02:14.6]} 15. Nxd5
{[%clk 0:02:08.3]} 15... Nxd5 {[%clk 0:02:13.5]} 16. Rxd5 {[%clk 0:02:08.4]}
16... Be6 {[%clk 0:02:12.4]} 17. Rd1 {[%clk 0:02:04.2]} 17... Rfc8 {[%clk
0:02:07.5]} 18. Bxa6 {[%clk 0:02:00.6]} 18... Bxa2 {[%clk 0:01:59.8]} 19. Bxc8
{[%clk 0:01:57.8]} 19... Rxc8 {[%clk 0:01:57.7]} 20. b3 {[%clk 0:01:52.8]} 20...
Bxb3 {[%clk 0:01:25.4]} 21. cxb3 {[%clk 0:01:50.2]} 21... Nd4+ {[%clk
0:01:25.1]} 22. Kb1 {[%clk 0:01:43.5]} 22... Nxb3 {[%clk 0:01:22.8]} 23. Bb6
{[%clk 0:01:43.1]} 23... h6 {[%clk 0:01:13.8]} 24. Rd8+ {[%clk 0:01:42.6]} 24...
Rxd8 {[%clk 0:01:13.1]} 25. Bxd8 {[%clk 0:01:43.5]} 25... Nd2+ {[%clk
0:01:10.9]} 26. Kc2 {[%clk 0:01:40]} 26... Ne4 {[%clk 0:01:10.3]} 27. f3 {[%clk
0:01:37.8]} 27... Nc5 {[%clk 0:01:03.2]} 28. Be7 {[%clk 0:01:37.6]} 28... Ne6
{[%clk 0:00:59.6]} 29. Bxb4 {[%clk 0:01:36.9]} 29... Nf4 {[%clk 0:00:58.5]} 30.
g3 {[%clk 0:01:34.1]} 30... Nd5 {[%clk 0:00:56.1]} 31. Bd2 {[%clk 0:01:34]}
31... f5 {[%clk 0:00:54.5]} 32. Ra1 {[%clk 0:01:32.3]} 32... g5 {[%clk
0:00:53.3]} 33. Ra7 {[%clk 0:01:32]} 33... f4 {[%clk 0:00:49.7]} 34. gxf4 {[%clk
0:01:30.8]} 34... gxf4 {[%clk 0:00:49.1]} 35. Rd7 {[%clk 0:01:30.7]} 35... Nf6
{[%clk 0:00:48]} 36. Rd6 {[%clk 0:01:28]} 36... Kf7 {[%clk 0:00:45.7]} 37. Bxf4
{[%clk 0:01:27.6]} 37... h5 {[%clk 0:00:45.5]} 38. Rxf6+ {[%clk 0:01:26.1]}
38... Kxf6 {[%clk 0:00:45.2]} 39. h4 {[%clk 0:01:27]} 39... Kf5 {[%clk
0:00:43.9]} 40. Bg5 {[%clk 0:01:27.4]} 40... Kg6 {[%clk 0:00:42.7]} 41. Kd3
{[%clk 0:01:27.9]} 41... Kf5 {[%clk 0:00:42.4]} 42. f4 {[%clk 0:01:26.9]} 42...
Ke6 {[%clk 0:00:41.3]} 43. Ke4 {[%clk 0:01:27.2]} 1-0

[Event "*** SCC Grand Prix: Titled Tuesday Blitz"]
[Site "Chess.com"]
[Date "2020.07.21"]
[Round "4"]
[White "SHIVACalypso"]
[Black "SzMM19"]
[Result "1/2-1/2"]
[WhiteElo "2350"]
[BlackElo "2579"]
[TimeControl "180+1"]
[EndTime "10:37:35 PDT"]
[Termination "Game drawn by repetition"]

1. Nf3 {[%clk 0:03:00.9]} 1... a5 {[%clk 0:02:53.1]} 2. c4 {[%clk 0:03:01.8]}
2... b6 {[%clk 0:02:53]} 3. g3 {[%clk 0:03:01.8]} 3... Ba6 {[%clk 0:02:52.6]} 4.
d3 {[%clk 0:02:59.6]} 4... g6 {[%clk 0:02:52.7]} 5. Bg2 {[%clk 0:02:59.8]} 5...
Bg7 {[%clk 0:02:53.2]} 6. O-O {[%clk 0:02:59.9]} 6... Nf6 {[%clk 0:02:53]} 7.
Nc3 {[%clk 0:02:57.1]} 7... O-O {[%clk 0:02:51.5]} 8. e4 {[%clk 0:02:57.5]} 8...
d6 {[%clk 0:02:49.7]} 9. a3 {[%clk 0:02:57.7]} 9... Nbd7 {[%clk 0:02:47.9]} 10.
Rb1 {[%clk 0:02:57.7]} 10... Ng4 {[%clk 0:02:37.7]} 11. Qc2 {[%clk 0:02:50.8]}
11... Nge5 {[%clk 0:02:35.4]} 12. b4 {[%clk 0:02:48.6]} 12... axb4 {[%clk
0:02:34]} 13. axb4 {[%clk 0:02:49.5]} 13... Nxf3+ {[%clk 0:02:30.7]} 14. Bxf3
{[%clk 0:02:50.4]} 14... Bb7 {[%clk 0:02:29.4]} 15. Bg2 {[%clk 0:02:46.7]} 15...
Ne5 {[%clk 0:02:28.7]} 16. Bb2 {[%clk 0:02:42.8]} 16... Nc6 {[%clk 0:02:22.3]}
17. Nd5 {[%clk 0:02:26.6]} 17... Nd4 {[%clk 0:02:15.2]} 18. Qd1 {[%clk
0:02:16.4]} 18... e6 {[%clk 0:02:10.6]} 19. Ne3 {[%clk 0:02:16.1]} 19... Ra2
{[%clk 0:02:06.3]} 20. Nc2 {[%clk 0:01:53.2]} 20... Nxc2 {[%clk 0:01:22.6]} 21.
Qxc2 {[%clk 0:01:54.1]} 21... Qa8 {[%clk 0:01:18.1]} 22. Qb3 {[%clk 0:01:50.1]}
22... Bxb2 {[%clk 0:01:17.5]} 23. Rxb2 {[%clk 0:01:49.4]} 23... Ra3 {[%clk
0:01:17.9]} 24. Qc2 {[%clk 0:01:48.3]} 24... e5 {[%clk 0:01:15.4]} 25. c5 {[%clk
0:01:44.1]} 25... bxc5 {[%clk 0:01:16.3]} 26. bxc5 {[%clk 0:01:44.5]} 26... Ba6
{[%clk 0:01:07.7]} 27. Rd1 {[%clk 0:01:39]} 27... Rd8 {[%clk 0:01:00.4]} 28. Bf1
{[%clk 0:01:37.9]} 28... d5 {[%clk 0:00:38.2]} 29. Rb3 {[%clk 0:01:02.7]} 29...
Rxb3 {[%clk 0:00:29.4]} 30. Qxb3 {[%clk 0:01:03.6]} 30... dxe4 {[%clk
0:00:29.9]} 31. dxe4 {[%clk 0:01:03.6]} 31... Rxd1 {[%clk 0:00:27.7]} 32. Qxd1
{[%clk 0:01:03.7]} 32... Bxf1 {[%clk 0:00:27.8]} 33. Kxf1 {[%clk 0:01:03.5]}
33... Qxe4 {[%clk 0:00:17.3]} 34. Qd8+ {[%clk 0:01:03]} 34... Kg7 {[%clk
0:00:17.8]} 35. Qxc7 {[%clk 0:01:02.8]} 35... Qh1+ {[%clk 0:00:18]} 36. Ke2
{[%clk 0:01:01.1]} 36... Qe4+ {[%clk 0:00:18.9]} 37. Kf1 {[%clk 0:01:01.1]}
37... Qh1+ {[%clk 0:00:18.9]} 38. Ke2 {[%clk 0:01:00.8]} 38... Qe4+ {[%clk
0:00:19.8]} 39. Kf1 {[%clk 0:01:01]} 1/2-1/2

[Event "*** SCC Grand Prix: Titled Tuesday Blitz"]
[Site "Chess.com"]
[Date "2020.07.21"]
[Round "4"]
[White "ketster"]
[Black "denispopov"]
[Result "1-0"]
[WhiteElo "2372"]
[BlackElo "1808"]
[TimeControl "180+1"]
[EndTime "10:37:37 PDT"]
[Termination "ketster won by resignation"]

1. d4 {[%clk 0:03:00.9]} 1... Nf6 {[%clk 0:02:59.3]} 2. c4 {[%clk 0:03:00.5]}
2... g6 {[%clk 0:02:57.8]} 3. Nc3 {[%clk 0:02:59.6]} 3... d5 {[%clk 0:02:57.3]}
4. Nf3 {[%clk 0:02:59]} 4... Bg7 {[%clk 0:02:55.2]} 5. h4 {[%clk 0:02:58.4]}
5... Bg4 {[%clk 0:02:50.5]} 6. cxd5 {[%clk 0:02:49]} 6... Nxd5 {[%clk
0:02:49.7]} 7. Qb3 {[%clk 0:02:42.4]} 7... Nxc3 {[%clk 0:02:34.4]} 8. bxc3
{[%clk 0:02:42]} 8... b6 {[%clk 0:02:29]} 9. Ng5 {[%clk 0:02:34.7]} 9... e6
{[%clk 0:02:05.9]} 10. f3 {[%clk 0:02:33.5]} 10... h6 {[%clk 0:02:01.1]} 11.
Nxf7 {[%clk 0:02:24.6]} 11... Kxf7 {[%clk 0:02:02]} 12. fxg4 {[%clk 0:02:22.6]}
12... Qd5 {[%clk 0:01:52.7]} 13. Qc2 {[%clk 0:02:20.2]} 13... Nd7 {[%clk
0:01:40.5]} 14. e4 {[%clk 0:02:18.7]} 14... Qc6 {[%clk 0:01:33.8]} 15. Bd3
{[%clk 0:02:18]} 15... Rhf8 {[%clk 0:01:29]} 16. e5 {[%clk 0:02:14.6]} 16...
Bxe5 {[%clk 0:01:16.6]} 17. dxe5 {[%clk 0:02:04.3]} 17... Nxe5 {[%clk
0:01:17.5]} 18. O-O+ {[%clk 0:01:44.6]} 18... Kg7 {[%clk 0:01:14.5]} 19. Bf4
{[%clk 0:01:40.3]} 19... Nxg4 {[%clk 0:01:08.8]} 20. Bxg6 {[%clk 0:01:34.3]}
20... Qc5+ {[%clk 0:01:04.4]} 21. Kh1 {[%clk 0:01:32.9]} 21... e5 {[%clk
0:00:41.5]} 22. Bh7 {[%clk 0:01:07.3]} 22... exf4 {[%clk 0:00:24.6]} 23. Qg6+
{[%clk 0:01:02.2]} 23... Kh8 {[%clk 0:00:24.4]} 24. Qxg4 {[%clk 0:00:55.2]}
24... Kxh7 {[%clk 0:00:22.5]} 25. Rad1 {[%clk 0:00:52.1]} 25... Rad8 {[%clk
0:00:15.9]} 26. Rxd8 {[%clk 0:00:48.5]} 26... Rxd8 {[%clk 0:00:16.8]} 27. Rxf4
{[%clk 0:00:48.3]} 27... Rd1+ {[%clk 0:00:13.7]} 28. Qxd1 {[%clk 0:00:47.4]} 1-0

[Event "*** SCC Grand Prix: Titled Tuesday Blitz"]
[Site "Chess.com"]
[Date "2020.07.21"]
[Round "4"]
[White "dosto07"]
[Black "MestreSoares"]
[Result "1-0"]
[WhiteElo "2234"]
[BlackElo "2061"]
[TimeControl "180+1"]
[EndTime "10:37:37 PDT"]
[Termination "dosto07 won by resignation"]

1. e4 {[%clk 0:03:00.9]} 1... Nf6 {[%clk 0:02:59.7]} 2. e5 {[%clk 0:02:59.8]}
2... Nd5 {[%clk 0:02:59.7]} 3. d4 {[%clk 0:03:00.1]} 3... d6 {[%clk 0:02:59.3]}
4. Nf3 {[%clk 0:02:59.7]} 4... Bg4 {[%clk 0:02:58.6]} 5. Be2 {[%clk 0:02:59.6]}
5... e6 {[%clk 0:02:58.7]} 6. O-O {[%clk 0:02:55.7]} 6... Be7 {[%clk 0:02:58.2]}
7. h3 {[%clk 0:02:53.1]} 7... Bf5 {[%clk 0:02:51.7]} 8. c4 {[%clk 0:02:50.1]}
8... Nb6 {[%clk 0:02:50.3]} 9. Nc3 {[%clk 0:02:48.7]} 9... O-O {[%clk 0:02:44]}
10. b3 {[%clk 0:02:40.2]} 10... Nc6 {[%clk 0:02:30.1]} 11. exd6 {[%clk
0:02:38.4]} 11... cxd6 {[%clk 0:02:29.1]} 12. Be3 {[%clk 0:02:30.5]} 12... d5
{[%clk 0:02:28.1]} 13. c5 {[%clk 0:02:29.8]} 13... Nc8 {[%clk 0:02:27.1]} 14.
Bd3 {[%clk 0:02:20.6]} 14... Bxd3 {[%clk 0:02:23.3]} 15. Qxd3 {[%clk 0:02:20.3]}
15... Bf6 {[%clk 0:02:23.2]} 16. Rab1 {[%clk 0:02:06]} 16... a6 {[%clk
0:02:19.7]} 17. Rfd1 {[%clk 0:02:03.5]} 17... b5 {[%clk 0:02:05.1]} 18. b4
{[%clk 0:01:48.2]} 18... N8e7 {[%clk 0:01:55.3]} 19. a4 {[%clk 0:01:47]} 19...
bxa4 {[%clk 0:01:50.8]} 20. Nxa4 {[%clk 0:01:45.8]} 20... Nf5 {[%clk 0:01:51.1]}
21. Nb6 {[%clk 0:01:32.6]} 21... Ra7 {[%clk 0:01:48.9]} 22. g4 {[%clk
0:01:17.9]} 22... Nh4 {[%clk 0:01:44.2]} 23. Nxh4 {[%clk 0:01:16.9]} 23... Bxh4
{[%clk 0:01:43.4]} 24. Kg2 {[%clk 0:01:06.6]} 24... g6 {[%clk 0:01:33.9]} 25.
Qd2 {[%clk 0:01:04.7]} 25... Bf6 {[%clk 0:01:28.1]} 26. Ra1 {[%clk 0:00:57.4]}
26... Qe7 {[%clk 0:01:10.3]} 27. Ra3 {[%clk 0:00:54.5]} 27... e5 {[%clk
0:00:32.2]} 28. Nxd5 {[%clk 0:00:48.4]} 28... Qd8 {[%clk 0:00:29.2]} 29. Nxf6+
{[%clk 0:00:39.7]} 29... Qxf6 {[%clk 0:00:27.6]} 30. Bg5 {[%clk 0:00:36.7]} 1-0

[Event "*** SCC Grand Prix: Titled Tuesday Blitz"]
[Site "Chess.com"]
[Date "2020.07.21"]
[Round "4"]
[White "ChelsieMonica"]
[Black "natelleka"]
[Result "0-1"]
[WhiteElo "2386"]
[BlackElo "2147"]
[TimeControl "180+1"]
[EndTime "10:37:39 PDT"]
[Termination "natelleka won on time"]

1. c4 {[%clk 0:02:30.7]} 1... Nf6 {[%clk 0:02:59.1]} 2. Nc3 {[%clk 0:02:29.2]}
2... c5 {[%clk 0:02:58.5]} 3. Nf3 {[%clk 0:02:29.3]} 3... e6 {[%clk 0:02:58]} 4.
g3 {[%clk 0:02:29.7]} 4... d5 {[%clk 0:02:57.6]} 5. cxd5 {[%clk 0:02:30.6]} 5...
Nxd5 {[%clk 0:02:56.9]} 6. d4 {[%clk 0:02:31.4]} 6... Nc6 {[%clk 0:02:55.1]} 7.
Nxd5 {[%clk 0:02:30.2]} 7... exd5 {[%clk 0:02:54.2]} 8. Bg2 {[%clk 0:02:30.5]}
8... Be7 {[%clk 0:02:53.1]} 9. O-O {[%clk 0:02:31.1]} 9... O-O {[%clk
0:02:52.6]} 10. dxc5 {[%clk 0:02:32]} 10... Bxc5 {[%clk 0:02:51.8]} 11. Bf4
{[%clk 0:02:32.2]} 11... Re8 {[%clk 0:02:46.2]} 12. Rc1 {[%clk 0:02:32.2]} 12...
Bb6 {[%clk 0:02:44.9]} 13. e3 {[%clk 0:02:25.6]} 13... Bf5 {[%clk 0:02:38]} 14.
Nd4 {[%clk 0:02:23.8]} 14... Nxd4 {[%clk 0:02:32]} 15. exd4 {[%clk 0:02:24.7]}
15... Be4 {[%clk 0:02:31.9]} 16. Re1 {[%clk 0:02:20.9]} 16... Bxg2 {[%clk
0:02:26.8]} 17. Kxg2 {[%clk 0:02:20.2]} 17... Rxe1 {[%clk 0:02:23.3]} 18. Qxe1
{[%clk 0:02:21.1]} 18... Bxd4 {[%clk 0:02:21.8]} 19. Rd1 {[%clk 0:02:21.6]}
19... Bf6 {[%clk 0:02:21.5]} 20. b3 {[%clk 0:02:17]} 20... d4 {[%clk 0:02:20.9]}
21. Qe4 {[%clk 0:02:17.1]} 21... Qb6 {[%clk 0:02:12]} 22. Be5 {[%clk 0:02:13.1]}
22... Bxe5 {[%clk 0:01:57.3]} 23. Qxe5 {[%clk 0:02:10.9]} 23... Rd8 {[%clk
0:01:57.8]} 24. h4 {[%clk 0:02:08.9]} 24... d3 {[%clk 0:01:55.6]} 25. Rd2 {[%clk
0:02:07.8]} 25... h6 {[%clk 0:01:45]} 26. g4 {[%clk 0:02:02.9]} 26... Qb4 {[%clk
0:01:43.3]} 27. Qc7 {[%clk 0:01:18.4]} 27... Qxg4+ {[%clk 0:01:37.9]} 28. Kf1
{[%clk 0:01:16.9]} 28... Rd7 {[%clk 0:01:25.6]} 29. Qc8+ {[%clk 0:01:10.3]}
29... Kh7 {[%clk 0:01:19.8]} 30. Rxd3 {[%clk 0:01:10.4]} 30... Rd4 {[%clk
0:00:58.5]} 31. Rxd4 {[%clk 0:01:10.1]} 31... Qxc8 {[%clk 0:00:57]} 0-1

[Event "*** SCC Grand Prix: Titled Tuesday Blitz"]
[Site "Chess.com"]
[Date "2020.07.21"]
[Round "4"]
[White "sotochess"]
[Black "OrtizAnahi2001"]
[Result "0-1"]
[WhiteElo "2417"]
[BlackElo "2283"]
[TimeControl "180+1"]
[EndTime "10:37:40 PDT"]
[Termination "OrtizAnahi2001 won on time"]

1. e4 {[%clk 0:03:00]} 1... e5 {[%clk 0:02:56.4]} 2. Nf3 {[%clk 0:02:55.7]} 2...
Nc6 {[%clk 0:02:49.5]} 3. Bc4 {[%clk 0:02:53.7]} 3... Bc5 {[%clk 0:02:46.1]} 4.
b4 {[%clk 0:02:53.3]} 4... Bxb4 {[%clk 0:02:43.6]} 5. c3 {[%clk 0:02:53.3]} 5...
Ba5 {[%clk 0:02:42.3]} 6. d4 {[%clk 0:02:53.1]} 6... exd4 {[%clk 0:02:40.7]} 7.
O-O {[%clk 0:02:52.6]} 7... Nge7 {[%clk 0:02:39.6]} 8. Ng5 {[%clk 0:02:51.2]}
8... d5 {[%clk 0:02:31.2]} 9. exd5 {[%clk 0:02:49.3]} 9... Ne5 {[%clk
0:02:25.1]} 10. Qa4+ {[%clk 0:02:27.6]} 10... c6 {[%clk 0:02:13.2]} 11. dxc6
{[%clk 0:02:24.8]} 11... O-O {[%clk 0:02:08.6]} 12. cxd4 {[%clk 0:02:14.7]}
12... Nxc4 {[%clk 0:02:03.5]} 13. Qxc4 {[%clk 0:02:12.8]} 13... Nxc6 {[%clk
0:01:59.9]} 14. d5 {[%clk 0:02:11.4]} 14... Ne5 {[%clk 0:01:47.8]} 15. Qe4
{[%clk 0:02:07.7]} 15... Ng6 {[%clk 0:01:46.5]} 16. Na3 {[%clk 0:01:54.3]} 16...
h6 {[%clk 0:01:17.2]} 17. Nf3 {[%clk 0:01:32.6]} 17... Qf6 {[%clk 0:01:17]} 18.
Be3 {[%clk 0:01:19.9]} 18... Bf5 {[%clk 0:01:16.6]} 19. Qa4 {[%clk 0:01:05.2]}
19... Bc7 {[%clk 0:01:14.7]} 20. Bd4 {[%clk 0:00:55.8]} 20... Qd8 {[%clk
0:01:09.8]} 21. Qb3 {[%clk 0:00:48.6]} 21... Be4 {[%clk 0:01:06.7]} 22. Qc3
{[%clk 0:00:24.1]} 22... Rc8 {[%clk 0:01:06]} 23. Qb2 {[%clk 0:00:20]} 23...
Bxf3 {[%clk 0:01:02.2]} 24. Rfc1 {[%clk 0:00:06.7]} 24... Qg5 {[%clk 0:00:44.3]}
25. g3 {[%clk 0:00:06.1]} 25... Nf4 {[%clk 0:00:44.5]} 0-1

[Event "*** SCC Grand Prix: Titled Tuesday Blitz"]
[Site "Chess.com"]
[Date "2020.07.21"]
[Round "4"]
[White "Steven_Rojas"]
[Black "Vuk2000"]
[Result "0-1"]
[WhiteElo "2393"]
[BlackElo "2611"]
[TimeControl "180+1"]
[EndTime "10:37:44 PDT"]
[Termination "Vuk2000 won by checkmate"]

1. c4 {[%clk 0:03:00.9]} 1... e5 {[%clk 0:02:59.8]} 2. Nc3 {[%clk 0:03:01.2]}
2... Nc6 {[%clk 0:02:59.5]} 3. Nf3 {[%clk 0:03:01.7]} 3... g6 {[%clk 0:03:00]}
4. e3 {[%clk 0:03:00.7]} 4... Bg7 {[%clk 0:03:00]} 5. d4 {[%clk 0:03:01.2]} 5...
d6 {[%clk 0:02:58.6]} 6. Be2 {[%clk 0:02:59.9]} 6... Nf6 {[%clk 0:02:52.4]} 7.
O-O {[%clk 0:02:53.7]} 7... O-O {[%clk 0:02:51.9]} 8. Rb1 {[%clk 0:02:42.9]}
8... Bf5 {[%clk 0:02:49.1]} 9. Ra1 {[%clk 0:02:33.1]} 9... exd4 {[%clk
0:02:48.9]} 10. Nxd4 {[%clk 0:02:28.4]} 10... Nxd4 {[%clk 0:02:48.7]} 11. exd4
{[%clk 0:02:29.3]} 11... Re8 {[%clk 0:02:48.8]} 12. Bf3 {[%clk 0:02:29.1]} 12...
Ne4 {[%clk 0:02:45.1]} 13. Be3 {[%clk 0:02:11.5]} 13... Nxc3 {[%clk 0:02:29]}
14. bxc3 {[%clk 0:02:12.4]} 14... c6 {[%clk 0:02:29.1]} 15. Qd2 {[%clk
0:02:05.7]} 15... Qa5 {[%clk 0:02:22.2]} 16. Rfe1 {[%clk 0:01:57.6]} 16... Be4
{[%clk 0:02:09]} 17. Bxe4 {[%clk 0:01:48.2]} 17... Rxe4 {[%clk 0:02:09.9]} 18.
Rab1 {[%clk 0:01:48.5]} 18... Rae8 {[%clk 0:01:58.9]} 19. f3 {[%clk 0:01:17.4]}
19... R4e7 {[%clk 0:01:58]} 20. Bf2 {[%clk 0:01:03.7]} 20... Qf5 {[%clk
0:01:25]} 21. Rxe7 {[%clk 0:00:57.2]} 21... Qxb1+ {[%clk 0:01:21.6]} 22. Re1
{[%clk 0:00:58.1]} 22... Rxe1+ {[%clk 0:01:20.9]} 23. Bxe1 {[%clk 0:00:58.5]}
23... Bf6 {[%clk 0:00:55.5]} 24. g3 {[%clk 0:00:53.7]} 24... h5 {[%clk 0:00:54]}
25. h4 {[%clk 0:00:52.3]} 25... c5 {[%clk 0:00:46.1]} 26. Kg2 {[%clk 0:00:51.1]}
26... cxd4 {[%clk 0:00:32.8]} 27. cxd4 {[%clk 0:00:52]} 27... Bxd4 {[%clk
0:00:32.9]} 28. Qxd4 {[%clk 0:00:40.8]} 28... Qxe1 {[%clk 0:00:31.9]} 29. Qxd6
{[%clk 0:00:41.2]} 29... Qe2+ {[%clk 0:00:31.9]} 30. Kh3 {[%clk 0:00:35]} 30...
Qxf3 {[%clk 0:00:30.9]} 31. Qb8+ {[%clk 0:00:35.4]} 31... Kh7 {[%clk 0:00:29]}
32. Qxa7 {[%clk 0:00:32.3]} 32... Qh1# {[%clk 0:00:27.9]} 0-1

[Event "*** SCC Grand Prix: Titled Tuesday Blitz"]
[Site "Chess.com"]
[Date "2020.07.21"]
[Round "4"]
[White "AungTZ"]
[Black "killer311"]
[Result "0-1"]
[WhiteElo "2024"]
[BlackElo "2381"]
[TimeControl "180+1"]
[EndTime "10:37:44 PDT"]
[Termination "killer311 won by resignation"]

1. e4 {[%clk 0:03:00.9]} 1... c6 {[%clk 0:03:00.4]} 2. d4 {[%clk 0:03:00.3]}
2... d5 {[%clk 0:03:01.3]} 3. Nc3 {[%clk 0:02:59.6]} 3... dxe4 {[%clk
0:03:01.1]} 4. Nxe4 {[%clk 0:02:59.6]} 4... Bf5 {[%clk 0:03:02]} 5. Ng3 {[%clk
0:02:59]} 5... Bg6 {[%clk 0:03:02.6]} 6. h4 {[%clk 0:02:59.5]} 6... h6 {[%clk
0:03:03]} 7. Nf3 {[%clk 0:02:59.8]} 7... Nf6 {[%clk 0:03:03.5]} 8. Bd3 {[%clk
0:03:00.1]} 8... Bxd3 {[%clk 0:03:03]} 9. Qxd3 {[%clk 0:03:00.5]} 9... e6 {[%clk
0:03:03.9]} 10. Bd2 {[%clk 0:03:00.1]} 10... c5 {[%clk 0:02:56.3]} 11. O-O-O
{[%clk 0:02:51.6]} 11... Nc6 {[%clk 0:02:55.6]} 12. Bc3 {[%clk 0:02:10.6]} 12...
Qd5 {[%clk 0:02:53]} 13. Kb1 {[%clk 0:02:07.9]} 13... Be7 {[%clk 0:02:52.2]} 14.
dxc5 {[%clk 0:01:49.7]} 14... Qxd3 {[%clk 0:02:51.6]} 15. Rxd3 {[%clk
0:01:48.9]} 15... Bxc5 {[%clk 0:02:52.2]} 16. Bxf6 {[%clk 0:01:47]} 16... gxf6
{[%clk 0:02:53.1]} 17. Ne4 {[%clk 0:01:46.6]} 17... Be7 {[%clk 0:02:53.6]} 18.
Nd6+ {[%clk 0:01:45.3]} 18... Bxd6 {[%clk 0:02:53.5]} 19. Rxd6 {[%clk
0:01:45.5]} 19... Rg8 {[%clk 0:02:53.4]} 20. g3 {[%clk 0:01:45]} 20... Rd8
{[%clk 0:02:53.3]} 21. Rhd1 {[%clk 0:01:40.7]} 21... Rxd6 {[%clk 0:02:52.1]} 22.
Rxd6 {[%clk 0:01:40.2]} 22... Rg4 {[%clk 0:02:52.7]} 23. c3 {[%clk 0:01:36.6]}
23... f5 {[%clk 0:02:52.6]} 24. Rd3 {[%clk 0:01:16.5]} 24... f4 {[%clk
0:02:50.7]} 25. Nh2 {[%clk 0:01:13.9]} 25... Rg6 {[%clk 0:02:44.4]} 26. g4
{[%clk 0:01:08.6]} 26... Ne5 {[%clk 0:02:42]} 27. Rd4 {[%clk 0:00:56.3]} 27...
Nxg4 {[%clk 0:02:41.9]} 28. Nf3 {[%clk 0:00:54.2]} 28... e5 {[%clk 0:02:27.7]}
29. Rb4 {[%clk 0:00:50.5]} 29... b6 {[%clk 0:02:24]} 30. Ra4 {[%clk 0:00:50.3]}
30... a5 {[%clk 0:02:23.3]} 31. Re4 {[%clk 0:00:48.2]} 31... Re6 {[%clk
0:02:17.5]} 32. Re2 {[%clk 0:00:45.3]} 32... f6 {[%clk 0:02:13.6]} 33. Nd2
{[%clk 0:00:40.2]} 33... Rd6 {[%clk 0:02:10.4]} 34. Ne4 {[%clk 0:00:38.7]} 34...
Rd1+ {[%clk 0:02:07.1]} 35. Kc2 {[%clk 0:00:38]} 35... Rf1 {[%clk 0:02:07.4]}
36. b4 {[%clk 0:00:32.9]} 36... axb4 {[%clk 0:02:06.5]} 37. cxb4 {[%clk
0:00:32.8]} 37... Ke7 {[%clk 0:02:07.4]} 38. a4 {[%clk 0:00:31.8]} 38... f5
{[%clk 0:02:06.4]} 39. Nd2 {[%clk 0:00:25.1]} 39... e4 {[%clk 0:02:01.9]} 40. f3
{[%clk 0:00:23.6]} 40... Ne3+ {[%clk 0:01:52]} 41. Kb2 {[%clk 0:00:19.7]} 41...
Rd1 {[%clk 0:01:46.9]} 42. fxe4 {[%clk 0:00:18]} 42... Rxd2+ {[%clk 0:01:41.8]}
43. Rxd2 {[%clk 0:00:17.9]} 43... Nc4+ {[%clk 0:01:42.5]} 44. Kc2 {[%clk
0:00:15.9]} 44... Nxd2 {[%clk 0:01:43.4]} 45. exf5 {[%clk 0:00:14.6]} 45... Nc4
{[%clk 0:01:39.4]} 46. Kd3 {[%clk 0:00:13.6]} 46... f3 {[%clk 0:01:39]} 47. a5
{[%clk 0:00:11.2]} 47... bxa5 {[%clk 0:01:38.9]} 48. bxa5 {[%clk 0:00:11.4]}
48... Nxa5 {[%clk 0:01:38.7]} 49. Ke3 {[%clk 0:00:12.3]} 49... Kf6 {[%clk
0:01:38.7]} 50. Kxf3 {[%clk 0:00:13.2]} 50... Kxf5 {[%clk 0:01:39.2]} 51. Kg3
{[%clk 0:00:13.3]} 51... h5 {[%clk 0:01:39.5]} 52. Kf3 {[%clk 0:00:14.2]} 0-1